[Event "Chpt France Universitaire 2024"]
[Site "Bastia, France"]
[Date "2024.04.07"]
[Round "9.1"]
[White "Dalaud, Dorian"]
[Black "Gatineau, Yovann"]
[Result "0-1"]
[TimeControl "15min+5s"]
[WhiteElo "2307"]
[BlackElo "2408"]

1. e4 {[%clk 00:15:05]} e6 {[%clk 00:15:05]} {[%emt 00:00:01]} 2. d4 {[%clk
00:15:05]} {[%emt 00:00:05]} d5 {[%clk 00:15:05]} {[%emt 00:00:01]} 3. e5
{[%clk 00:15:05]} {[%emt 00:00:01]} c5 {[%clk 00:15:05]} {[%emt 00:00:01]} 4.
c3 {[%clk 00:15:05]} {[%emt 00:00:02]} Nc6 {[%clk 00:15:05]} {[%emt 00:00:01]}
5. Nf3 {[%clk 00:15:05]} {[%emt 00:00:01]} Nge7 {[%clk 00:15:05]} {[%emt
00:00:02]} 6. h4 {[%clk 00:14:48]} {[%emt 00:00:22]} Bd7 {[%clk 00:14:51]}
{[%emt 00:00:19]} 7. Bd3 {[%clk 00:14:42]} {[%emt 00:00:11]} cxd4 {[%clk
00:14:26]} {[%emt 00:00:31]} 8. cxd4 {[%clk 00:14:37]} {[%emt 00:00:10]} Nf5
{[%clk 00:13:52]} {[%emt 00:00:39]} 9. Bxf5 {[%clk 00:14:37]} {[%emt 00:00:02]}
exf5 {[%clk 00:13:52]} 10. Nc3 {[%clk 00:14:37]} Be6 {[%clk 00:13:52]} {[%emt
00:00:03]} 11. Bg5 {[%clk 00:13:26]} {[%emt 00:01:16]} Qb6 {[%clk 00:13:24]}
{[%emt 00:00:32]} 12. Qd2 {[%clk 00:12:31]} {[%emt 00:01:00]} h6 {[%clk
00:13:19]} {[%emt 00:00:10]} 13. Be3 {[%clk 00:12:25]} {[%emt 00:00:11]} Be7
{[%clk 00:13:19]} {[%emt 00:00:02]} 14. O-O {[%clk 00:12:25]} {[%emt 00:00:03]}
Qd8 {[%clk 00:11:57]} {[%emt 00:01:27]} 15. Rac1 {[%clk 00:10:45]} {[%emt
00:01:46]} Bxh4 {[%clk 00:10:39]} {[%emt 00:01:23]} 16. Nxh4 {[%clk 00:10:45]}
{[%emt 00:00:02]} Qxh4 {[%clk 00:10:39]} 17. Nb5 {[%clk 00:10:45]} {[%emt
00:00:01]} O-O {[%clk 00:10:27]} {[%emt 00:00:16]} 18. Nd6 {[%clk 00:10:45]}
{[%emt 00:00:02]} Rab8 {[%clk 00:08:51]} {[%emt 00:01:41]} 19. b4 {[%clk
00:09:42]} {[%emt 00:01:08]} g5 {[%clk 00:07:04]} {[%emt 00:01:51]} 20. f3
{[%clk 00:07:57]} {[%emt 00:01:51]} f4 {[%clk 00:06:52]} {[%emt 00:00:17]} 21.
Bf2 {[%clk 00:07:57]} {[%emt 00:00:03]} Qh5 {[%clk 00:06:52]} {[%emt 00:00:01]}
22. b5 {[%clk 00:06:23]} {[%emt 00:01:40]} Ne7 {[%clk 00:06:52]} {[%emt
00:00:01]} 23. Rc7 {[%clk 00:06:23]} {[%emt 00:00:01]} Ng6 {[%clk 00:05:49]}
{[%emt 00:01:08]} 24. Rfc1 {[%clk 00:04:05]} {[%emt 00:02:23]} g4 {[%clk
00:05:39]} {[%emt 00:00:16]} 25. fxg4 {[%clk 00:04:05]} {[%emt 00:00:02]} Bxg4
{[%clk 00:05:25]} {[%emt 00:00:17]} 26. Qd3 {[%clk 00:01:54]} {[%emt 00:02:17]}
f3 {[%clk 00:05:00]} {[%emt 00:00:30]} 27. g3 {[%clk 00:01:54]} {[%emt
00:00:02]} Bh3 {[%clk 00:03:55]} {[%emt 00:01:10]} 28. Be3 {[%clk 00:00:36]}
{[%emt 00:01:23]} Be6 {[%clk 00:02:44]} {[%emt 00:01:16]} 29. Qd2 {[%clk
00:00:29]} {[%emt 00:00:11]} Qg4 {[%clk 00:01:39]} {[%emt 00:01:10]} 30. Qh2
{[%clk 00:00:29]} {[%emt 00:00:05]} h5 {[%clk 00:01:39]} {[%emt 00:00:03]} 31.
Kf2 {[%clk 00:00:25]} {[%emt 00:00:08]} b6 {[%clk 00:00:54]} {[%emt 00:00:50]}
32. Qh1 {[%clk 00:00:19]} {[%emt 00:00:11]} Ra8 {[%clk 00:00:41]} {[%emt
00:00:19]} 33. Qxf3 {[%clk 00:00:19]} {[%emt 00:00:04]} a6 {[%clk 00:00:41]}
{[%emt 00:00:02]} 34. Qxg4 {[%clk 00:00:16]} {[%emt 00:00:08]} hxg4 {[%clk
00:00:41]} {[%emt 00:00:01]} 35. R1c2 {[%clk 00:00:10]} {[%emt 00:00:11]} axb5
{[%clk 00:00:41]} {[%emt 00:00:01]} 36. Nxb5 {[%clk 00:00:10]} Ra5 {[%clk
00:00:36]} {[%emt 00:00:10]} 37. Nc3 {[%clk 00:00:09]} {[%emt 00:00:07]} Rfa8
{[%clk 00:00:36]} {[%emt 00:00:01]} 38. Rb2 {[%clk 00:00:09]} {[%emt 00:00:01]}
R8a6 {[%clk 00:00:30]} {[%emt 00:00:10]} 39. Rb7 {[%clk 00:00:09]} {[%emt
00:00:02]} Ra3 {[%clk 00:00:30]} {[%emt 00:00:02]} 40. Rc7 {[%clk 00:00:09]}
{[%emt 00:00:03]} Ne7 {[%clk 00:00:16]} {[%emt 00:00:20]} 41. Bg5 {[%clk
00:00:08]} {[%emt 00:00:06]} Nf5 {[%clk 00:00:16]} {[%emt 00:00:01]} 42. Bf6
{[%clk 00:00:08]} {[%emt 00:00:04]} Nxd4 {[%clk 00:00:15]} {[%emt 00:00:06]} 43.
Rb7 {[%clk 00:00:06]} {[%emt 00:00:07]} Rxc3 {[%clk 00:00:15]} {[%emt
00:00:02]} 44. R7xb6 {[%clk 00:00:06]} {[%emt 00:00:05]} Rxb6 {[%clk 00:00:15]}
{[%emt 00:00:01]} 45. Rxb6 {[%clk 00:00:06]} {[%emt 00:00:01]} Kh7 {[%clk
00:00:12]} {[%emt 00:00:08]} 46. Rb2 {[%clk 00:00:06]} {[%emt 00:00:04]} Kg6
{[%clk 00:00:12]} {[%emt 00:00:02]} 47. Rd2 {[%clk 00:00:06]} {[%emt 00:00:04]}
Nf3 {[%clk 00:00:11]} {[%emt 00:00:05]} 48. Rb2 {[%clk 00:00:06]} {[%emt
00:00:02]} Kf5 {[%clk 00:00:11]} {[%emt 00:00:03]} 49. a4 {[%clk 00:00:06]}
{[%emt 00:00:04]} Ra3 {[%clk 00:00:11]} 50. Rb4 {[%clk 00:00:06]} {[%emt
00:00:01]} d4 {[%clk 00:00:11]} {[%emt 00:00:03]} 51. Kf1 {[%clk 00:00:06]}
{[%emt 00:00:05]} Kxe5 {[%emt 00:00:04]} 0-1

[Event "Chpt France Universitaire 2024"]
[Site "Bastia, France"]
[Date "2024.04.07"]
[Round "9.2"]
[White "Rakotomaharo, Fy Antenaina"]
[Black "Budak, Rewi"]
[Result "1-0"]
[TimeControl "15min+5s"]
[WhiteElo "2448"]
[BlackElo "2112"]

1. e4 {[%clk 00:15:05]} {[%emt 00:00:02]} c5 {[%clk 00:15:05]} {[%emt
00:00:03]} 2. a4 {[%clk 00:15:05]} {[%emt 00:00:02]} Nf6 {[%clk 00:14:12]}
{[%emt 00:00:58]} 3. e5 {[%clk 00:15:05]} {[%emt 00:00:03]} Nd5 {[%clk
00:14:12]} {[%emt 00:00:01]} 4. Nc3 {[%clk 00:15:05]} {[%emt 00:00:02]} Nxc3
{[%clk 00:12:55]} {[%emt 00:01:23]} 5. dxc3 {[%clk 00:15:05]} {[%emt 00:00:02]}
d5 {[%clk 00:12:05]} {[%emt 00:00:55]} 6. exd6 {[%clk 00:14:49]} {[%emt
00:00:21]} e5 {[%clk 00:10:47]} {[%emt 00:01:24]} 7. Bb5+ {[%clk 00:14:41]}
{[%emt 00:00:13]} Nc6 {[%clk 00:10:34]} {[%emt 00:00:18]} 8. Bxc6+ {[%clk
00:11:50]} {[%emt 00:02:55]} bxc6 {[%clk 00:10:34]} {[%emt 00:00:02]} 9. Qf3
{[%clk 00:11:50]} {[%emt 00:00:04]} Qxd6 {[%clk 00:10:11]} {[%emt 00:00:28]} 10.
Ne2 {[%clk 00:11:39]} {[%emt 00:00:16]} Qd5 {[%clk 00:08:31]} {[%emt 00:01:46]}
11. Qg3 {[%clk 00:09:51]} {[%emt 00:01:53]} Ba6 {[%clk 00:08:31]} {[%emt
00:00:04]} 12. Be3 {[%emt 00:00:22]} Rd8 {[%clk 00:07:40]} {[%emt 00:00:56]} 13.
b3 {[%clk 00:09:24]} {[%emt 00:00:15]} Rd6 {[%clk 00:05:35]} {[%emt 00:02:10]}
14. c4 {[%clk 00:07:06]} {[%emt 00:02:23]} Qe4 {[%clk 00:05:35]} {[%emt
00:00:01]} 15. Nc3 {[%clk 00:06:37]} {[%emt 00:00:33]} Qxc2 {[%clk 00:03:33]}
{[%emt 00:02:08]} 16. Qxe5+ {[%clk 00:06:13]} {[%emt 00:00:29]} Be7 {[%clk
00:03:33]} {[%emt 00:00:02]} 17. Rc1 {[%clk 00:03:55]} {[%emt 00:02:23]} Qxb3
{[%clk 00:02:08]} {[%emt 00:01:30]} 18. O-O {[%clk 00:03:49]} {[%emt 00:00:11]}
Re6 {[%clk 00:01:51]} {[%emt 00:00:22]} 19. Qxg7 {[%clk 00:03:15]} {[%emt
00:00:38]} Bf6 {[%clk 00:01:51]} {[%emt 00:00:03]} 20. Qg3 {[%clk 00:02:59]}
{[%emt 00:00:21]} Bxc3 {[%clk 00:01:04]} {[%emt 00:00:53]} 21. Rxc3 {[%clk
00:02:37]} {[%emt 00:00:27]} Qxc3 {[%clk 00:00:34]} {[%emt 00:00:35]} 22. Qb8+
{[%clk 00:02:37]} {[%emt 00:00:03]} Ke7 {[%clk 00:00:16]} {[%emt 00:00:24]} 23.
Bxc5+ {[%clk 00:02:29]} {[%emt 00:00:12]} Kf6 {[%clk 00:00:15]} {[%emt
00:00:06]} 24. Qxh8+ {[%clk 00:02:29]} {[%emt 00:00:02]} 1-0

[Event "Chpt France Universitaire 2024"]
[Site "Bastia, France"]
[Date "2024.04.07"]
[Round "9.3"]
[White "Harutyunyan, Safar"]
[Black "Pacteau, Andre"]
[Result "0-1"]
[TimeControl "15min+5s"]
[WhiteElo "2266"]
[BlackElo "2099"]

1. e4 {[%clk 00:15:05]} {[%emt 00:00:02]} e6 {[%clk 00:15:05]} {[%emt
00:00:02]} 2. d4 {[%clk 00:15:05]} d5 {[%clk 00:15:05]} {[%emt 00:00:03]} 3.
Nc3 {[%clk 00:15:05]} {[%emt 00:00:02]} Nf6 {[%clk 00:15:05]} {[%emt 00:00:03]}
4. e5 {[%clk 00:15:05]} {[%emt 00:00:02]} Nfd7 {[%clk 00:15:05]} {[%emt
00:00:02]} 5. Nce2 {[%clk 00:15:05]} {[%emt 00:00:01]} c5 {[%clk 00:15:05]}
{[%emt 00:00:04]} 6. c3 {[%clk 00:15:05]} Nc6 {[%clk 00:15:05]} {[%emt
00:00:02]} 7. Nf3 {[%clk 00:15:05]} {[%emt 00:00:01]} cxd4 {[%clk 00:14:54]}
{[%emt 00:00:17]} 8. cxd4 {[%clk 00:15:05]} {[%emt 00:00:01]} Bb4+ {[%clk
00:14:54]} {[%emt 00:00:02]} 9. Bd2 {[%clk 00:15:05]} {[%emt 00:00:02]} Be7
{[%clk 00:14:06]} {[%emt 00:00:52]} 10. a3 {[%clk 00:15:05]} {[%emt 00:00:02]}
f5 {[%clk 00:14:06]} {[%emt 00:00:04]} 11. exf6 {[%clk 00:14:42]} {[%emt
00:00:29]} Nxf6 {[%clk 00:14:05]} {[%emt 00:00:07]} 12. Nf4 {[%clk 00:14:27]}
{[%emt 00:00:20]} Qb6 {[%clk 00:13:47]} {[%emt 00:00:23]} 13. Bc3 {[%clk
00:14:08]} {[%emt 00:00:24]} O-O {[%clk 00:13:42]} {[%emt 00:00:10]} 14. Be2
{[%clk 00:12:47]} {[%emt 00:01:26]} Bd7 {[%clk 00:12:04]} {[%emt 00:01:44]} 15.
O-O {[%clk 00:12:44]} {[%emt 00:00:07]} Bd6 {[%clk 00:11:45]} {[%emt 00:00:24]}
16. Nd3 {[%clk 00:12:24]} {[%emt 00:00:25]} Ne4 {[%clk 00:11:45]} {[%emt
00:00:02]} 17. Rc1 {[%clk 00:11:36]} {[%emt 00:00:54]} Nxc3 {[%clk 00:10:09]}
{[%emt 00:01:41]} 18. bxc3 {[%clk 00:11:36]} {[%emt 00:00:02]} Bxa3 {[%clk
00:10:09]} {[%emt 00:00:05]} 19. Rb1 {[%clk 00:11:36]} {[%emt 00:00:01]} Qc7
{[%clk 00:10:09]} {[%emt 00:00:01]} 20. Qb3 {[%clk 00:11:33]} {[%emt 00:00:08]}
Bd6 {[%clk 00:10:07]} {[%emt 00:00:07]} 21. Qxb7 {[%clk 00:11:24]} {[%emt
00:00:14]} Rfc8 {[%clk 00:09:20]} {[%emt 00:00:52]} 22. Qa6 {[%clk 00:10:17]}
{[%emt 00:01:12]} Rcb8 {[%clk 00:06:13]} {[%emt 00:03:12]} 23. c4 {[%clk
00:09:29]} {[%emt 00:00:54]} dxc4 {[%clk 00:02:11]} {[%emt 00:04:07]} 24. Qxc4
{[%clk 00:08:59]} {[%emt 00:00:34]} Rxb1 {[%clk 00:01:45]} {[%emt 00:00:31]} 25.
Rxb1 {[%emt 00:00:02]} Rb8 26. Rc1 {[%clk 00:08:44]} {[%emt 00:00:20]} Qa5
{[%clk 00:01:11]} {[%emt 00:00:39]} 27. Nc5 {[%clk 00:07:41]} {[%emt 00:01:08]}
Bxc5 {[%clk 00:00:18]} {[%emt 00:00:58]} 28. dxc5 {[%clk 00:07:41]} {[%emt
00:00:01]} Qb4 {[%clk 00:00:16]} {[%emt 00:00:08]} 29. Qd3 {[%clk 00:07:01]}
{[%emt 00:00:44]} Rd8 {[%clk 00:00:09]} {[%emt 00:00:11]} 30. Qe3 {[%clk
00:06:58]} {[%emt 00:00:08]} a5 {[%clk 00:00:08]} {[%emt 00:00:06]} 31. Rd1
{[%clk 00:06:52]} {[%emt 00:00:11]} Bc8 {[%clk 00:00:08]} {[%emt 00:00:02]} 32.
Rxd8+ {[%clk 00:03:59]} {[%emt 00:02:58]} Nxd8 {[%clk 00:00:08]} {[%emt
00:00:01]} 33. Qd3 {[%clk 00:03:59]} {[%emt 00:00:05]} Nf7 {[%clk 00:00:08]}
{[%emt 00:00:06]} 34. Qb5 {[%clk 00:01:29]} {[%emt 00:02:34]} Kf8 {[%clk
00:00:08]} {[%emt 00:00:02]} 35. h4 {[%clk 00:00:54]} {[%emt 00:00:40]} Ke7
{[%clk 00:00:07]} {[%emt 00:00:06]} 36. Qc6 {[%clk 00:00:51]} {[%emt 00:00:07]}
Qb7 {[%clk 00:00:07]} {[%emt 00:00:02]} 37. Qa4 {[%clk 00:00:49]} {[%emt
00:00:07]} Qb4 {[%clk 00:00:07]} {[%emt 00:00:03]} 38. Qc6 {[%clk 00:00:30]}
{[%emt 00:00:24]} Qb7 {[%clk 00:00:07]} {[%emt 00:00:01]} 39. Nd4 {[%emt
00:00:02]} Qb1+ {[%clk 00:00:07]} {[%emt 00:00:06]} 40. Kh2 {[%clk 00:00:30]}
{[%emt 00:00:03]} Qb8+ {[%clk 00:00:07]} 41. g3 {[%clk 00:00:30]} {[%emt
00:00:02]} Qe5 {[%clk 00:00:07]} {[%emt 00:00:02]} 42. Qxc8 {[%clk 00:00:27]}
{[%emt 00:00:08]} Qxd4 {[%clk 00:00:07]} 43. Qc7+ {[%clk 00:00:27]} {[%emt
00:00:03]} Ke8 {[%clk 00:00:07]} {[%emt 00:00:04]} 44. Bb5+ {[%clk 00:00:27]}
{[%emt 00:00:02]} Kf8 {[%clk 00:00:07]} {[%emt 00:00:02]} 45. Qb8+ {[%clk
00:00:22]} {[%emt 00:00:09]} Ke7 {[%clk 00:00:07]} {[%emt 00:00:02]} 46. Qb7+
{[%clk 00:00:22]} {[%emt 00:00:02]} Kf6 {[%clk 00:00:07]} {[%emt 00:00:04]} 47.
Qf3+ {[%clk 00:00:22]} {[%emt 00:00:02]} Ke7 {[%clk 00:00:07]} {[%emt
00:00:02]} 48. c6 {[%clk 00:00:22]} {[%emt 00:00:05]} Ne5 {[%clk 00:00:07]}
{[%emt 00:00:01]} 49. Qa3+ {[%clk 00:00:22]} {[%emt 00:00:03]} Kf7 {[%clk
00:00:07]} {[%emt 00:00:03]} 50. Qa2 {[%clk 00:00:16]} {[%emt 00:00:12]} Qc5
{[%clk 00:00:07]} {[%emt 00:00:03]} 51. c7 {[%clk 00:00:10]} {[%emt 00:00:10]}
Qxc7 {[%clk 00:00:07]} {[%emt 00:00:02]} 52. Qe2 {[%emt 00:00:01]} Qc5 {[%clk
00:00:07]} {[%emt 00:00:02]} 53. f4 {[%clk 00:00:10]} {[%emt 00:00:02]} Nc6
{[%clk 00:00:07]} {[%emt 00:00:04]} 54. Bc4 {[%clk 00:00:10]} {[%emt 00:00:04]}
Nd4 {[%clk 00:00:07]} {[%emt 00:00:01]} 55. Qd3 {[%clk 00:00:10]} a4 {[%clk
00:00:07]} {[%emt 00:00:03]} 0-1

[Event "Chpt France Universitaire 2024"]
[Site "Bastia, France"]
[Date "2024.04.07"]
[Round "9.4"]
[White "Gryshko, Vitalii"]
[Black "Roux, Baptiste"]
[Result "0-1"]
[TimeControl "15min+5s"]
[WhiteElo "2288"]
[BlackElo "2361"]

1. a3 {[%clk 00:15:05]} d5 {[%clk 00:15:05]} {[%emt 00:00:06]} 2. Nf3 {[%clk
00:15:04]} {[%emt 00:00:06]} Nf6 {[%clk 00:15:05]} {[%emt 00:00:03]} 3. e3
{[%clk 00:15:04]} {[%emt 00:00:01]} e6 {[%clk 00:14:56]} {[%emt 00:00:14]} 4.
c4 {[%clk 00:15:04]} {[%emt 00:00:01]} dxc4 {[%clk 00:14:56]} {[%emt 00:00:04]}
5. Bxc4 {[%clk 00:15:03]} {[%emt 00:00:05]} a6 {[%clk 00:14:56]} {[%emt
00:00:02]} 6. d4 {[%clk 00:14:42]} {[%emt 00:00:26]} b5 {[%clk 00:14:55]}
{[%emt 00:00:07]} 7. Ba2 {[%clk 00:14:40]} {[%emt 00:00:06]} Bb7 {[%clk
00:14:54]} {[%emt 00:00:06]} 8. O-O {[%clk 00:14:40]} {[%emt 00:00:02]} Nbd7
{[%clk 00:14:54]} {[%emt 00:00:03]} 9. Nc3 {[%clk 00:14:40]} {[%emt 00:00:04]}
Bd6 {[%clk 00:13:00]} {[%emt 00:02:00]} 10. Qe2 {[%clk 00:13:48]} {[%emt
00:00:57]} c5 {[%clk 00:11:30]} {[%emt 00:01:35]} 11. Rd1 {[%clk 00:12:46]}
{[%emt 00:01:07]} Qe7 {[%clk 00:11:28]} {[%emt 00:00:08]} 12. e4 {[%clk
00:12:28]} {[%emt 00:00:24]} cxd4 {[%clk 00:11:27]} {[%emt 00:00:05]} 13. e5
{[%clk 00:12:28]} {[%emt 00:00:01]} dxc3 {[%clk 00:10:51]} {[%emt 00:00:41]} 14.
exd6 {[%clk 00:11:30]} {[%emt 00:01:02]} Qd8 {[%clk 00:10:40]} {[%emt
00:00:16]} 15. bxc3 {[%clk 00:07:53]} {[%emt 00:03:42]} O-O {[%clk 00:10:40]}
{[%emt 00:00:04]} 16. Bg5 {[%clk 00:07:00]} {[%emt 00:00:58]} h6 {[%clk
00:10:20]} {[%emt 00:00:26]} 17. Bh4 {[%clk 00:06:46]} {[%emt 00:00:18]} Rc8
{[%clk 00:09:35]} {[%emt 00:00:50]} 18. Ne5 {[%clk 00:06:31]} {[%emt 00:00:19]}
g5 {[%clk 00:08:16]} {[%emt 00:01:24]} 19. Nxd7 {[%clk 00:04:35]} {[%emt
00:02:01]} Nxd7 {[%clk 00:08:00]} {[%emt 00:00:22]} 20. Qh5 {[%clk 00:03:12]}
{[%emt 00:01:28]} Qf6 {[%clk 00:07:41]} {[%emt 00:00:24]} 21. Bg3 {[%clk
00:03:09]} {[%emt 00:00:08]} Rxc3 {[%clk 00:07:35]} {[%emt 00:00:11]} 22. h4
{[%clk 00:03:09]} {[%emt 00:00:05]} Rxg3 {[%clk 00:07:08]} {[%emt 00:00:32]} 23.
fxg3 {[%clk 00:02:40]} {[%emt 00:00:34]} Qb2 {[%clk 00:07:08]} 24. Bd5 {[%clk
00:02:40]} Bxd5 {[%clk 00:07:08]} 25. Rxd5 {[%clk 00:02:40]} {[%emt 00:00:04]}
exd5 {[%clk 00:04:55]} {[%emt 00:02:18]} 26. Rf1 {[%clk 00:02:35]} {[%emt
00:00:10]} Qg7 {[%clk 00:03:31]} {[%emt 00:01:29]} 27. Qg4 {[%clk 00:02:29]}
{[%emt 00:00:10]} Ne5 {[%clk 00:02:50]} {[%emt 00:00:47]} 28. Qf5 {[%clk
00:02:27]} {[%emt 00:00:07]} Rd8 {[%clk 00:02:36]} {[%emt 00:00:20]} 29. Rc1
{[%clk 00:02:11]} {[%emt 00:00:20]} Nc4 {[%clk 00:02:25]} {[%emt 00:00:17]} 30.
d7 {[%clk 00:02:07]} {[%emt 00:00:09]} Qd4+ {[%clk 00:01:37]} {[%emt 00:00:52]}
31. Kh2 {[%clk 00:02:07]} {[%emt 00:00:04]} Qe4 {[%clk 00:01:35]} {[%emt
00:00:07]} 32. Qf6 {[%clk 00:01:43]} {[%emt 00:00:28]} Rxd7 {[%clk 00:01:35]}
{[%emt 00:00:02]} 33. Qxa6 {[%clk 00:01:43]} {[%emt 00:00:03]} Rd6 {[%clk
00:01:01]} {[%emt 00:00:38]} 34. Qxb5 {[%clk 00:01:43]} {[%emt 00:00:06]} gxh4
{[%clk 00:01:01]} {[%emt 00:00:05]} 35. Rxc4 {[%clk 00:00:18]} {[%emt
00:01:29]} hxg3+ {[%clk 00:01:01]} {[%emt 00:00:02]} 36. Kh3 {[%clk 00:00:18]}
dxc4 {[%clk 00:00:43]} {[%emt 00:00:24]} 37. Qb8+ {[%clk 00:00:18]} {[%emt
00:00:01]} Kg7 {[%clk 00:00:43]} {[%emt 00:00:01]} 38. Qxd6 {[%clk 00:00:18]}
{[%emt 00:00:02]} Qe6+ {[%clk 00:00:43]} 39. Qxe6 {[%clk 00:00:18]} {[%emt
00:00:01]} fxe6 {[%clk 00:00:43]} 40. a4 {[%clk 00:00:18]} {[%emt 00:00:02]} c3
{[%clk 00:00:43]} 0-1

[Event "Chpt France Universitaire 2024"]
[Site "Bastia, France"]
[Date "2024.04.07"]
[Round "9.5"]
[White "Maache, Jawad"]
[Black "Morison, Julien"]
[Result "1/2-1/2"]
[TimeControl "15min+5s"]
[WhiteElo "2154"]
[BlackElo "1926"]

1. d4 {[%clk 00:15:05]} {[%emt 00:00:02]} Nf6 {[%clk 00:15:05]} {[%emt
00:00:01]} 2. Nc3 {[%clk 00:15:05]} {[%emt 00:00:03]} d5 {[%clk 00:15:05]}
{[%emt 00:00:01]} 3. Bf4 {[%clk 00:15:05]} {[%emt 00:00:03]} g6 {[%clk
00:15:05]} {[%emt 00:00:05]} 4. e3 {[%clk 00:14:58]} {[%emt 00:00:12]} Bg7
{[%clk 00:15:05]} {[%emt 00:00:01]} 5. h4 {[%clk 00:14:58]} {[%emt 00:00:02]}
c5 {[%clk 00:15:05]} {[%emt 00:00:06]} 6. Be2 {[%clk 00:14:45]} {[%emt
00:00:18]} a6 {[%clk 00:14:48]} {[%emt 00:00:22]} 7. h5 {[%clk 00:14:32]}
{[%emt 00:00:18]} Nc6 {[%clk 00:14:41]} {[%emt 00:00:12]} 8. h6 {[%clk
00:12:40]} {[%emt 00:01:56]} Bf8 {[%clk 00:14:41]} {[%emt 00:00:01]} 9. Be5
{[%clk 00:11:48]} {[%emt 00:00:58]} c4 {[%clk 00:13:35]} {[%emt 00:01:12]} 10.
g4 {[%clk 00:11:19]} {[%emt 00:00:33]} Be6 {[%clk 00:12:36]} {[%emt 00:01:04]}
11. Bf3 {[%clk 00:10:46]} {[%emt 00:00:38]} Qa5 {[%clk 00:11:51]} {[%emt
00:00:51]} 12. Nh3 {[%clk 00:07:04]} {[%emt 00:03:47]} O-O-O {[%clk 00:10:32]}
{[%emt 00:01:24]} 13. Nf4 {[%clk 00:06:32]} {[%emt 00:00:37]} g5 {[%clk
00:09:23]} {[%emt 00:01:14]} 14. Nxe6 {[%clk 00:06:13]} {[%emt 00:00:24]} fxe6
{[%clk 00:09:23]} {[%emt 00:00:04]} 15. Bg2 {[%clk 00:05:22]} {[%emt 00:00:55]}
Nxe5 {[%clk 00:08:53]} {[%emt 00:00:35]} 16. dxe5 {[%clk 00:05:22]} {[%emt
00:00:01]} Ng8 {[%clk 00:07:12]} {[%emt 00:01:46]} 17. Qd4 {[%clk 00:04:39]}
{[%emt 00:00:48]} Nxh6 {[%clk 00:07:06]} {[%emt 00:00:11]} 18. O-O-O {[%clk
00:04:19]} {[%emt 00:00:25]} Bg7 {[%clk 00:07:04]} {[%emt 00:00:07]} 19. e4
{[%clk 00:04:07]} {[%emt 00:00:18]} Nxg4 {[%clk 00:06:41]} {[%emt 00:00:28]} 20.
exd5 {[%clk 00:03:54]} {[%emt 00:00:18]} Nxe5 {[%clk 00:06:41]} {[%emt
00:00:01]} 21. Kb1 {[%clk 00:02:58]} {[%emt 00:01:01]} Bf6 {[%clk 00:05:52]}
{[%emt 00:00:54]} 22. Qa7 {[%clk 00:02:58]} {[%emt 00:00:03]} Qc7 {[%clk
00:04:08]} {[%emt 00:01:49]} 23. dxe6 {[%clk 00:02:55]} {[%emt 00:00:08]} Nc6
{[%clk 00:03:59]} {[%emt 00:00:14]} 24. Qa8+ {[%clk 00:01:25]} Qb8 {[%clk
00:03:59]} 25. Qxb8+ {[%clk 00:01:25]} {[%emt 00:02:27]} Kxb8 {[%clk 00:03:17]}
{[%emt 00:00:01]} 26. Bxc6 {[%clk 00:01:18]} {[%emt 00:00:12]} bxc6 {[%clk
00:03:17]} {[%emt 00:00:03]} 27. Ne4 {[%clk 00:01:18]} {[%emt 00:00:05]} Rxd1+
{[%clk 00:03:07]} {[%emt 00:00:15]} 28. Rxd1 {[%clk 00:01:18]} Kc7 {[%clk
00:03:07]} {[%emt 00:00:02]} 29. Rd7+ {[%clk 00:01:16]} {[%emt 00:00:06]} Kb6
{[%clk 00:03:01]} {[%emt 00:00:11]} 30. a4 {[%clk 00:00:59]} {[%emt 00:00:23]}
c5 {[%clk 00:02:13]} {[%emt 00:00:53]} 31. Nd2 {[%clk 00:00:39]} {[%emt
00:00:24]} h5 {[%clk 00:01:45]} {[%emt 00:00:33]} 32. Nxc4+ {[%clk 00:00:39]}
{[%emt 00:00:03]} Kc6 {[%clk 00:01:45]} 33. c3 {[%clk 00:00:27]} {[%emt
00:00:18]} h4 {[%clk 00:01:24]} {[%emt 00:00:25]} 34. b4 {[%clk 00:00:23]}
{[%emt 00:00:09]} cxb4 {[%clk 00:01:04]} {[%emt 00:00:24]} 35. cxb4 {[%clk
00:00:23]} {[%emt 00:00:02]} Rb8 {[%clk 00:00:57]} {[%emt 00:00:12]} 36. Na5+
{[%clk 00:00:14]} {[%emt 00:00:14]} Kb6 {[%clk 00:00:57]} 37. Nc4+ {[%clk
00:00:10]} {[%emt 00:00:09]} Kc6 {[%clk 00:00:57]} 38. Na5+ {[%clk 00:00:10]}
{[%emt 00:00:06]} Kb6 {[%clk 00:00:57]} {[%emt 00:00:01]} 39. Nc4+ {[%clk
00:00:10]} Kc6 {[%emt 00:00:03]} 1/2-1/2